[Event "Titled Tuesday Blitz March 21 Early 2023"]
[White "Ljukin, Sergei"]
[Black "Rios Escobar, Adan"]
[WhiteFideId "14102200"]
[BlackFideId "3403645"]
[WhiteElo "2312"]
[BlackElo "2411"]
[Result "1-0"]
[Round "10"]
[TimeControl "180+2"]
[Date "2023.03.21"]
[WhiteClock "0:00:11"]
[BlackClock "0:00:08"]

1. e4 {[%clk 0:02:51]}  c5 {[%clk 0:02:59]} 2. Nf3 {[%clk 0:02:51]}  d6 {[%clk 0:03:00]} 3. d4 {[%clk 0:02:51]}  cxd4 {[%clk 0:03:01]} 4. Nxd4 {[%clk 0:02:52]}  Nf6 {[%clk 0:03:01]} 5. Nc3 {[%clk 0:02:52]}  a6 {[%clk 0:03:01]} 6. Bg5 {[%clk 0:02:52]}  Nbd7 {[%clk 0:02:58]} 7. f4 {[%clk 0:02:52]}  g6 {[%clk 0:02:56]} 8. Qe2 {[%clk 0:02:46]}  Bg7 {[%clk 0:02:56]} 9. e5 {[%clk 0:02:43]}  O-O {[%clk 0:02:51]} 10. O-O-O {[%clk 0:02:38]}  dxe5 {[%clk 0:02:50]} 11. fxe5 {[%clk 0:02:37]}  Qa5 {[%clk 0:02:51]} 12. Bxf6 {[%clk 0:02:22]}  exf6 {[%clk 0:02:49]} 13. e6 {[%clk 0:02:22]}  Ne5 {[%clk 0:02:46]} 14. exf7+ {[%clk 0:02:19]}  Rxf7 {[%clk 0:02:45]} 15. Nf3 {[%clk 0:02:18]}  Bg4 {[%clk 0:02:38]} 16. h3 {[%clk 0:02:03]}  Bxf3 {[%clk 0:02:26]} 17. gxf3 {[%clk 0:02:03]}  Rc8 {[%clk 0:02:17]} 18. f4 {[%clk 0:01:24]}  Nc4 {[%clk 0:02:08]} 19. Qe6 {[%clk 0:01:23]}  Rc6 {[%clk 0:01:28]} 20. Bxc4 {[%clk 0:00:39]}  Rxe6 {[%clk 0:01:24]} 21. Bxe6 {[%clk 0:00:39]}  Kf8 {[%clk 0:01:01]} 22. Bxf7 {[%clk 0:00:27]}  Kxf7 {[%clk 0:01:02]} 23. Rd7+ {[%clk 0:00:26]}  Kg8 {[%clk 0:00:59]} 24. Re1 {[%clk 0:00:25]}  Bf8 {[%clk 0:00:40]} 25. Re8 {[%clk 0:00:20]}  Qf5 {[%clk 0:00:33]} 26. Rdd8 {[%clk 0:00:20]}  Qxf4+ {[%clk 0:00:33]} 27. Kb1 {[%clk 0:00:20]}  Qf1+ {[%clk 0:00:19]} 28. Nd1 {[%clk 0:00:20]}  Qxh3 {[%clk 0:00:13]} 29. Rxf8+ {[%clk 0:00:19]}  Kg7 {[%clk 0:00:13]} 30. a3 {[%clk 0:00:16]}  h5 {[%clk 0:00:13]} 31. Rh8 {[%clk 0:00:14]}  Qf1 {[%clk 0:00:10]} 32. Ka2 {[%clk 0:00:13]}  Qc4+ {[%clk 0:00:10]} 33. Kb1 {[%clk 0:00:13]}  Qf1 {[%clk 0:00:11]} 34. b3 {[%clk 0:00:13]}  Qe2 {[%clk 0:00:04]} 35. Kb2 {[%clk 0:00:12]}  Qe5+ {[%clk 0:00:03]} 36. Nc3 {[%clk 0:00:12]}  g5 {[%clk 0:00:02]} 37. Rxh5 {[%clk 0:00:11]}  Kg6 {[%clk 0:00:02]} 38. Rhh8 {[%clk 0:00:10]}  b5 {[%clk 0:00:03]} 39. Rhg8+ {[%clk 0:00:10]}  Kf5 {[%clk 0:00:03]} 40. Rd5 {[%clk 0:00:10]}  Qxd5 {[%clk 0:00:02]} 41. Nxd5 {[%clk 0:00:10]}  Ke5 {[%clk 0:00:02]} 42. Nxf6 {[%clk 0:00:09]}  Kxf6 {[%clk 0:00:03]} 43. Kc3 {[%clk 0:00:09]}  Kf5 {[%clk 0:00:03]} 44. Kb4 {[%clk 0:00:10]}  Kf4 {[%clk 0:00:04]} 45. Ka5 {[%clk 0:00:10]}  g4 {[%clk 0:00:03]} 46. Kxa6 {[%clk 0:00:10]}  b4 {[%clk 0:00:04]} 47. axb4 {[%clk 0:00:10]}  Kf3 {[%clk 0:00:05]} 48. b5 {[%clk 0:00:10]}  g3 {[%clk 0:00:06]} 49. Rxg3+ {[%clk 0:00:10]}  Kxg3 {[%clk 0:00:04]} 50. b6 {[%clk 0:00:10]}  Kf4 {[%clk 0:00:05]} 51. b7 {[%clk 0:00:11]}  Ke4 {[%clk 0:00:06]} 52. b8=Q {[%clk 0:00:11]}  Kd4 {[%clk 0:00:07]} 53. Qf4+ {[%clk 0:00:11]}  Kc3 {[%clk 0:00:07]} 54. Qc4+ {[%clk 0:00:11]}  Kb2 {[%clk 0:00:08]} 55. b4 {[%clk 0:00:11]}  Ka3 {[%clk 0:00:08]} 56. Qb3# {[%clk 0:00:11]} 1-0


[Site "https://www.chess.com"]

[Event "Titled Tuesday Blitz March 21 Early 2023"]
[White "Avazkhonov, Alikhon"]
[Black "Horak, Martin"]
[WhiteFideId "14208504"]
[BlackFideId "367095"]
[WhiteElo "1739"]
[BlackElo "2091"]
[Result "0-1"]
[Round "10"]
[TimeControl "180+2"]
[Date "2023.03.21"]
[WhiteClock "0:00:14"]
[BlackClock "0:00:07"]

1. d4 {[%clk 0:03:00]}  Nf6 {[%clk 0:02:59]} 2. c4 {[%clk 0:03:01]}  e6 {[%clk 0:03:00]} 3. Nc3 {[%clk 0:03:02]}  Bb4 {[%clk 0:03:00]} 4. e3 {[%clk 0:03:01]}  O-O {[%clk 0:02:59]} 5. Bd2 {[%clk 0:03:01]}  d5 {[%clk 0:02:58]} 6. Nf3 {[%clk 0:03:02]}  b6 {[%clk 0:02:57]} 7. cxd5 {[%clk 0:03:01]}  exd5 {[%clk 0:02:58]} 8. Rc1 {[%clk 0:03:02]}  Bb7 {[%clk 0:02:45]} 9. Bd3 {[%clk 0:02:40]}  Re8 {[%clk 0:02:44]} 10. Ne5 {[%clk 0:02:34]}  Bd6 {[%clk 0:02:37]} 11. Nb5 {[%clk 0:02:31]}  c5 {[%clk 0:01:59]} 12. Nxd6 {[%clk 0:00:53]}  Qxd6 {[%clk 0:01:55]} 13. O-O {[%clk 0:00:52]}  Nc6 {[%clk 0:01:42]} 14. f4 {[%clk 0:00:33]}  cxd4 {[%clk 0:01:23]} 15. exd4 {[%clk 0:00:25]}  Nxd4 {[%clk 0:01:19]} 16. Qa4 {[%clk 0:00:16]}  Ne6 {[%clk 0:01:17]} 17. Bb5 {[%clk 0:00:13]}  Rec8 {[%clk 0:01:10]} 18. Bb4 {[%clk 0:00:08]}  Nc5 {[%clk 0:01:05]} 19. Qa3 {[%clk 0:00:08]}  Nfe4 {[%clk 0:01:01]} 20. Nd7 {[%clk 0:00:06]}  a6 {[%clk 0:00:48]} 21. Ba4 {[%clk 0:00:07]}  Bc6 {[%clk 0:00:39]} 22. Nxb6 {[%clk 0:00:06]}  Bxa4 {[%clk 0:00:35]} 23. Nxa4 {[%clk 0:00:07]}  Qf6 {[%clk 0:00:14]} 24. Nxc5 {[%clk 0:00:07]}  Qd4+ {[%clk 0:00:14]} 25. Kh1 {[%clk 0:00:08]}  Nf2+ {[%clk 0:00:14]} 26. Rxf2 {[%clk 0:00:08]}  Qxf2 {[%clk 0:00:15]} 27. Qf3 {[%clk 0:00:07]}  Qd4 {[%clk 0:00:13]} 28. Ba3 {[%clk 0:00:06]}  Rab8 {[%clk 0:00:11]} 29. Qc3 {[%clk 0:00:07]}  Qxf4 {[%clk 0:00:11]} 30. Rd1 {[%clk 0:00:06]}  Rd8 {[%clk 0:00:11]} 31. h3 {[%clk 0:00:05]}  d4 {[%clk 0:00:11]} 32. Qc4 {[%clk 0:00:05]}  h6 {[%clk 0:00:09]} 33. Nxa6 {[%clk 0:00:05]}  Rbc8 {[%clk 0:00:09]} 34. Qd3 {[%clk 0:00:04]}  Rc1 {[%clk 0:00:08]} 35. Nc5 {[%clk 0:00:05]}  Rxd1+ {[%clk 0:00:08]} 36. Qxd1 {[%clk 0:00:05]}  d3 {[%clk 0:00:07]} 37. Nxd3 {[%clk 0:00:04]}  Qd4 {[%clk 0:00:07]} 38. Nf2 {[%clk 0:00:03]}  Qxd1+ {[%clk 0:00:07]} 39. Nxd1 {[%clk 0:00:04]}  Rxd1+ {[%clk 0:00:07]} 40. Kh2 {[%clk 0:00:05]}  Ra1 {[%clk 0:00:08]} 41. b4 {[%clk 0:00:02]}  Rxa2 {[%clk 0:00:08]} 42. Bc1 {[%clk 0:00:03]}  Ra1 {[%clk 0:00:06]} 43. Be3 {[%clk 0:00:04]}  Rb1 {[%clk 0:00:05]} 44. Bc5 {[%clk 0:00:04]}  f5 {[%clk 0:00:04]} 45. Kg3 {[%clk 0:00:05]}  Kf7 {[%clk 0:00:05]} 46. Kf4 {[%clk 0:00:06]}  Ke6 {[%clk 0:00:05]} 47. h4 {[%clk 0:00:05]}  Rc1 {[%clk 0:00:05]} 48. h5 {[%clk 0:00:05]}  Rc4+ {[%clk 0:00:06]} 49. Kf3 {[%clk 0:00:05]}  Rh4 {[%clk 0:00:03]} 50. b5 {[%clk 0:00:04]}  Rxh5 {[%clk 0:00:02]} 51. b6 {[%clk 0:00:05]}  Kd7 {[%clk 0:00:02]} 52. Bd4 {[%clk 0:00:04]}  Rg5 {[%clk 0:00:02]} 53. Kf4 {[%clk 0:00:04]}  Kc6 {[%clk 0:00:01]} 54. g3 {[%clk 0:00:04]}  Kb7 {[%clk 0:00:01]} 55. Kf3 {[%clk 0:00:04]}  Rg4 {[%clk 0:00:02]} 56. Be5 {[%clk 0:00:03]}  Rg6 {[%clk 0:00:02]} 57. Bd4 {[%clk 0:00:03]}  Rxb6 {[%clk 0:00:02]} 58. Bxb6 {[%clk 0:00:04]}  Kxb6 {[%clk 0:00:02]} 59. Kf4 {[%clk 0:00:05]}  g6 {[%clk 0:00:02]} 60. Ke5 {[%clk 0:00:06]}  h5 {[%clk 0:00:02]} 61. Kf6 {[%clk 0:00:05]}  h4 {[%clk 0:00:01]} 62. gxh4 {[%clk 0:00:05]}  f4 {[%clk 0:00:02]} 63. Kxg6 {[%clk 0:00:06]}  f3 {[%clk 0:00:02]} 64. h5 {[%clk 0:00:07]}  f2 {[%clk 0:00:03]} 65. h6 {[%clk 0:00:08]}  f1=Q {[%clk 0:00:04]} 66. Kg7 {[%clk 0:00:08]}  Qa1+ {[%clk 0:00:04]} 67. Kg8 {[%clk 0:00:08]}  Qa2+ {[%clk 0:00:04]} 68. Kg7 {[%clk 0:00:08]}  Qb2+ {[%clk 0:00:05]} 69. Kg8 {[%clk 0:00:09]}  Qb3+ {[%clk 0:00:05]} 70. Kg7 {[%clk 0:00:09]}  Qc3+ {[%clk 0:00:06]} 71. Kg8 {[%clk 0:00:10]}  Qc4+ {[%clk 0:00:07]} 72. Kg7 {[%clk 0:00:11]}  Qd4+ {[%clk 0:00:07]} 73. Kg8 {[%clk 0:00:11]}  Qd5+ {[%clk 0:00:08]} 74. Kg7 {[%clk 0:00:12]}  Qe5+ {[%clk 0:00:08]} 75. Kg8 {[%clk 0:00:13]}  Qe6+ {[%clk 0:00:08]} 76. Kg7 {[%clk 0:00:13]}  Qe7+ {[%clk 0:00:08]} 77. Kg8 {[%clk 0:00:14]}  Qg5+ {[%clk 0:00:08]} 78. Kh7 {[%clk 0:00:14]}  Kc7 {[%clk 0:00:07]} 0-1


[Site "https://www.chess.com"]

[Event "Titled Tuesday Blitz March 21 Early 2023"]
[White "Shukhman, Anna"]
[Black "Donskov, Anatoly"]
[WhiteFideId "54180058"]
[BlackFideId "24143413"]
[WhiteElo "2125"]
[BlackElo "2247"]
[Result "0-1"]
[Round "10"]
[TimeControl "180+2"]
[Date "2023.03.21"]
[WhiteClock "0:00:59"]
[BlackClock "0:00:06"]

1. e4 {[%clk 0:03:00]}  c5 {[%clk 0:02:54]} 2. Nf3 {[%clk 0:03:00]}  e6 {[%clk 0:02:53]} 3. d4 {[%clk 0:03:00]}  cxd4 {[%clk 0:02:53]} 4. Nxd4 {[%clk 0:03:00]}  Nf6 {[%clk 0:02:53]} 5. Nc3 {[%clk 0:03:00]}  Nc6 {[%clk 0:02:53]} 6. Nxc6 {[%clk 0:03:00]}  bxc6 {[%clk 0:02:54]} 7. e5 {[%clk 0:03:01]}  Nd5 {[%clk 0:02:53]} 8. Ne4 {[%clk 0:03:02]}  Qc7 {[%clk 0:02:54]} 9. f4 {[%clk 0:03:02]}  Rb8 {[%clk 0:02:54]} 10. a3 {[%clk 0:03:01]}  f5 {[%clk 0:02:53]} 11. Nf2 {[%clk 0:02:55]}  Bc5 {[%clk 0:02:15]} 12. Bd3 {[%clk 0:02:39]}  O-O {[%clk 0:01:46]} 13. O-O {[%clk 0:02:37]}  Ne3 {[%clk 0:01:42]} 14. Bxe3 {[%clk 0:02:34]}  Bxe3 {[%clk 0:01:43]} 15. b3 {[%clk 0:02:28]}  Bxf4 {[%clk 0:01:42]} 16. Qh5 {[%clk 0:02:23]}  Bxe5 {[%clk 0:01:41]} 17. Rae1 {[%clk 0:02:21]}  c5 {[%clk 0:01:30]} 18. Ng4 {[%clk 0:02:06]}  Bd4+ {[%clk 0:01:30]} 19. Kh1 {[%clk 0:02:06]}  Bb7 {[%clk 0:01:28]} 20. Qg5 {[%clk 0:01:43]}  Kh8 {[%clk 0:01:20]} 21. Rf4 {[%clk 0:01:29]}  fxg4 {[%clk 0:00:57]} 22. Qh5 {[%clk 0:01:23]}  Rf5 {[%clk 0:00:48]} 23. Rxf5 {[%clk 0:01:07]}  g6 {[%clk 0:00:17]} 24. Rf8+ {[%clk 0:01:05]}  Rxf8 {[%clk 0:00:16]} 25. Bxg6 {[%clk 0:01:06]}  d6 {[%clk 0:00:15]} 26. Bd3 {[%clk 0:01:03]}  Qg7 {[%clk 0:00:14]} 27. Rxe6 {[%clk 0:01:00]}  g3 {[%clk 0:00:11]} 28. hxg3 {[%clk 0:00:59]}  Rf2 {[%clk 0:00:07]} 29. Rh6 {[%clk 0:00:57]}  Bxg2+ {[%clk 0:00:07]} 30. Kh2 {[%clk 0:00:57]}  Bf3+ {[%clk 0:00:07]} 31. Kh3 {[%clk 0:00:57]}  Bxh5 {[%clk 0:00:07]} 32. Rxh5 {[%clk 0:00:57]}  Qd7+ {[%clk 0:00:07]} 33. g4 {[%clk 0:00:56]}  Rf3+ {[%clk 0:00:06]} 34. Kh2 {[%clk 0:00:57]}  Qxg4 {[%clk 0:00:06]} 35. Rxh7+ {[%clk 0:00:57]}  Kg8 {[%clk 0:00:06]} 36. Bc4+ {[%clk 0:00:56]}  Kxh7 {[%clk 0:00:06]} 37. Bd3+ {[%clk 0:00:57]}  Rxd3 {[%clk 0:00:06]} 38. cxd3 {[%clk 0:00:58]}  Bf2 {[%clk 0:00:06]} 39. Kh1 {[%clk 0:00:59]}  Qg1# {[%clk 0:00:06]} 0-1


[Site "https://www.chess.com"]

[Event "Titled Tuesday Blitz March 21 Early 2023"]
[White "Sovetbekova, Nurai"]
[Black "Omariev, Maksim"]
[WhiteFideId "13801910"]
[BlackFideId "4193423"]
[WhiteElo "1857"]
[BlackElo "2469"]
[Result "1-0"]
[Round "10"]
[TimeControl "180+2"]
[Date "2023.03.21"]
[WhiteClock "0:00:09"]
[BlackClock "0:00:01"]

1. d4 {[%clk 0:03:00]}  h5 {[%clk 0:02:59]} 2. h3 {[%clk 0:02:58]}  h4 {[%clk 0:03:00]} 3. c4 {[%clk 0:02:58]}  d6 {[%clk 0:03:00]} 4. Nc3 {[%clk 0:02:58]}  e5 {[%clk 0:02:59]} 5. dxe5 {[%clk 0:02:57]}  dxe5 {[%clk 0:03:00]} 6. Qxd8+ {[%clk 0:02:57]}  Kxd8 {[%clk 0:03:01]} 7. Nf3 {[%clk 0:02:57]}  f6 {[%clk 0:03:01]} 8. Bd2 {[%clk 0:02:55]}  c6 {[%clk 0:03:01]} 9. O-O-O {[%clk 0:02:55]}  Kc7 {[%clk 0:03:01]} 10. e3 {[%clk 0:02:44]}  Be6 {[%clk 0:03:02]} 11. b3 {[%clk 0:02:44]}  Nd7 {[%clk 0:02:57]} 12. Bd3 {[%clk 0:02:42]}  Ba3+ {[%clk 0:02:52]} 13. Kb1 {[%clk 0:02:40]}  Ne7 {[%clk 0:02:50]} 14. Bc2 {[%clk 0:02:11]}  a5 {[%clk 0:02:41]} 15. Na4 {[%clk 0:01:44]}  g5 {[%clk 0:02:30]} 16. Bc3 {[%clk 0:01:31]}  b5 {[%clk 0:02:20]} 17. cxb5 {[%clk 0:01:29]}  cxb5 {[%clk 0:02:20]} 18. Nb2 {[%clk 0:01:29]}  Nd5 {[%clk 0:01:43]} 19. Bd2 {[%clk 0:01:19]}  Rhd8 {[%clk 0:01:37]} 20. Be4 {[%clk 0:00:57]}  Nc5 {[%clk 0:01:32]} 21. Rc1 {[%clk 0:00:43]}  Kb6 {[%clk 0:01:28]} 22. Bc2 {[%clk 0:00:40]}  Rd7 {[%clk 0:00:27]} 23. e4 {[%clk 0:00:36]}  Ne7 {[%clk 0:00:19]} 24. Be3 {[%clk 0:00:36]}  Ka6 {[%clk 0:00:10]} 25. Rhd1 {[%clk 0:00:23]}  Rad8 {[%clk 0:00:09]} 26. Bxc5 {[%clk 0:00:20]}  Bxc5 {[%clk 0:00:08]} 27. Nd3 {[%clk 0:00:19]}  Ba3 {[%clk 0:00:08]} 28. Nb2 {[%clk 0:00:18]}  Nc6 {[%clk 0:00:07]} 29. Bd3 {[%clk 0:00:14]}  Ne7 {[%clk 0:00:03]} 30. Be2 {[%clk 0:00:13]}  Kb6 {[%clk 0:00:03]} 31. Ne1 {[%clk 0:00:12]}  Ng6 {[%clk 0:00:01]} 32. Ned3 {[%clk 0:00:12]}  Be7 {[%clk 0:00:01]} 33. a4 {[%clk 0:00:11]}  Ba3 {[%clk 0:00:01]} 34. axb5 {[%clk 0:00:11]}  Bxb3 {[%clk 0:00:01]} 35. Nc4+ {[%clk 0:00:10]}  Bxc4 {[%clk 0:00:01]} 36. Rxc4 {[%clk 0:00:10]}  Kxb5 {[%clk 0:00:02]} 37. Rc3 {[%clk 0:00:10]}  Bb4 {[%clk 0:00:02]} 38. Nxb4+ {[%clk 0:00:10]}  Kxb4 {[%clk 0:00:01]} 39. Rc4+ {[%clk 0:00:10]}  Kb3 {[%clk 0:00:01]} 40. Rdc1 {[%clk 0:00:09]} 1-0


[Site "https://www.chess.com"]

[Event "Titled Tuesday Blitz March 21 Early 2023"]
[White "Bogaudinov, Rushan"]
[Black "Ratsma, Midas"]
[WhiteFideId "4129288"]
[BlackFideId "1032283"]
[WhiteElo "1949"]
[BlackElo "2172"]
[Result "1-0"]
[Round "10"]
[TimeControl "180+2"]
[Date "2023.03.21"]
[WhiteClock "0:00:11"]
[BlackClock "0:00:02"]

1. d4 {[%clk 0:02:51]}  d5 {[%clk 0:02:59]} 2. c4 {[%clk 0:02:50]}  e5 {[%clk 0:03:00]} 3. dxe5 {[%clk 0:02:46]}  d4 {[%clk 0:03:00]} 4. e3 {[%clk 0:02:46]}  Nc6 {[%clk 0:03:01]} 5. Nf3 {[%clk 0:02:44]}  Bb4+ {[%clk 0:02:59]} 6. Bd2 {[%clk 0:02:44]}  dxe3 {[%clk 0:02:58]} 7. fxe3 {[%clk 0:02:43]}  Nh6 {[%clk 0:02:57]} 8. Nc3 {[%clk 0:02:34]}  Ng4 {[%clk 0:02:54]} 9. Qb3 {[%clk 0:02:26]}  Qe7 {[%clk 0:02:47]} 10. Be2 {[%clk 0:02:05]}  Ngxe5 {[%clk 0:02:35]} 11. O-O {[%clk 0:01:55]}  Bxc3 {[%clk 0:02:20]} 12. Qxc3 {[%clk 0:01:48]}  O-O {[%clk 0:02:19]} 13. Nd4 {[%clk 0:01:39]}  Be6 {[%clk 0:02:06]} 14. Rae1 {[%clk 0:01:32]}  Rad8 {[%clk 0:02:05]} 15. Bd1 {[%clk 0:01:30]}  Bd7 {[%clk 0:01:53]} 16. Bc2 {[%clk 0:01:23]}  Qg5 {[%clk 0:01:52]} 17. e4 {[%clk 0:01:15]}  Qg6 {[%clk 0:01:51]} 18. Nf5 {[%clk 0:01:12]}  Rfe8 {[%clk 0:01:33]} 19. Re3 {[%clk 0:01:09]}  Ng4 {[%clk 0:01:26]} 20. Rg3 {[%clk 0:01:03]}  h5 {[%clk 0:00:57]} 21. h3 {[%clk 0:01:01]}  Bxf5 {[%clk 0:00:57]} 22. exf5 {[%clk 0:00:58]}  Qd6 {[%clk 0:00:57]} 23. Bf4 {[%clk 0:00:42]}  Qc5+ {[%clk 0:00:55]} 24. Kh1 {[%clk 0:00:36]}  Nge5 {[%clk 0:00:48]} 25. f6 {[%clk 0:00:31]}  g6 {[%clk 0:00:45]} 26. Rg5 {[%clk 0:00:24]}  Qd4 {[%clk 0:00:40]} 27. Qg3 {[%clk 0:00:23]}  Qxc4 {[%clk 0:00:36]} 28. Rf2 {[%clk 0:00:16]}  Rd5 {[%clk 0:00:19]} 29. Rxh5 {[%clk 0:00:15]}  Re6 {[%clk 0:00:16]} 30. Qg5 {[%clk 0:00:13]}  Rxf6 {[%clk 0:00:08]} 31. Qxf6 {[%clk 0:00:12]}  gxh5 {[%clk 0:00:08]} 32. Bh6 {[%clk 0:00:11]}  Rd1+ {[%clk 0:00:03]} 33. Bxd1 {[%clk 0:00:11]}  Qf1+ {[%clk 0:00:02]} 34. Rxf1 {[%clk 0:00:11]} 1-0


[Site "https://www.chess.com"]

[Event "Titled Tuesday Blitz March 21 Early 2023"]
[White "Khandelwal, Ankush"]
[Black "Fernandez Hernandez, Gerardo"]
[WhiteFideId "413470"]
[BlackFideId "2207400"]
[WhiteElo "2263"]
[BlackElo "2231"]
[Result "1-0"]
[Round "10"]
[TimeControl "180+2"]
[Date "2023.03.21"]
[WhiteClock "0:02:10"]
[BlackClock "0:01:17"]

1. e4 {[%clk 0:03:00]}  c5 {[%clk 0:02:57]} 2. Nf3 {[%clk 0:02:54]}  Nc6 {[%clk 0:02:57]} 3. Bb5 {[%clk 0:02:51]}  g6 {[%clk 0:02:54]} 4. O-O {[%clk 0:02:42]}  Bg7 {[%clk 0:02:54]} 5. c3 {[%clk 0:02:40]}  e5 {[%clk 0:02:52]} 6. d4 {[%clk 0:02:35]}  cxd4 {[%clk 0:02:48]} 7. cxd4 {[%clk 0:02:34]}  exd4 {[%clk 0:02:37]} 8. Bf4 {[%clk 0:02:33]}  Nge7 {[%clk 0:02:33]} 9. Bd6 {[%clk 0:02:30]}  O-O {[%clk 0:02:30]} 10. Nbd2 {[%clk 0:02:27]}  a6 {[%clk 0:02:14]} 11. Bd3 {[%clk 0:02:24]}  Re8 {[%clk 0:02:04]} 12. Bc4 {[%clk 0:02:14]}  b5 {[%clk 0:02:00]} 13. Bxf7+ {[%clk 0:02:13]}  Kxf7 {[%clk 0:01:21]} 14. Qb3+ {[%clk 0:02:12]}  Kf8 {[%clk 0:01:21]} 15. Ng5 {[%clk 0:02:10]}  Ne5 {[%clk 0:01:17]} 16. Nxh7# {[%clk 0:02:10]} 1-0


[Site "https://www.chess.com"]

[Event "Titled Tuesday Blitz March 21 Early 2023"]
[White "Shvedova, Alexandra"]
[Black "djokovic74"]
[WhiteFideId "54154782"]
[WhiteElo "2057"]
[BlackElo "2549"]
[Result "0-1"]
[Round "10"]
[TimeControl "180+2"]
[Date "2023.03.21"]
[WhiteClock "0:00:03"]
[BlackClock "0:00:03"]

1. d4 {[%clk 0:03:00]}  e6 {[%clk 0:03:00]} 2. e4 {[%clk 0:02:58]}  d5 {[%clk 0:03:00]} 3. e5 {[%clk 0:02:56]}  c5 {[%clk 0:03:00]} 4. c3 {[%clk 0:02:57]}  Nc6 {[%clk 0:03:01]} 5. Nf3 {[%clk 0:02:56]}  Nge7 {[%clk 0:03:01]} 6. Bd3 {[%clk 0:02:56]}  cxd4 {[%clk 0:03:02]} 7. cxd4 {[%clk 0:02:56]}  Nf5 {[%clk 0:03:02]} 8. Bxf5 {[%clk 0:02:54]}  exf5 {[%clk 0:03:03]} 9. Nc3 {[%clk 0:02:54]}  Be6 {[%clk 0:03:03]} 10. O-O {[%clk 0:02:53]}  Be7 {[%clk 0:03:02]} 11. Nb5 {[%clk 0:02:49]}  a6 {[%clk 0:02:56]} 12. Nc3 {[%clk 0:02:40]}  g5 {[%clk 0:02:56]} 13. a3 {[%clk 0:02:38]}  f4 {[%clk 0:02:54]} 14. h3 {[%clk 0:02:32]}  Qd7 {[%clk 0:02:49]} 15. Na4 {[%clk 0:02:30]}  Rd8 {[%clk 0:02:31]} 16. Nc5 {[%clk 0:02:20]}  Bxc5 {[%clk 0:02:28]} 17. dxc5 {[%clk 0:02:21]}  g4 {[%clk 0:02:29]} 18. hxg4 {[%clk 0:02:20]}  Bxg4 {[%clk 0:02:29]} 19. Bxf4 {[%clk 0:02:20]}  Qf5 {[%clk 0:02:29]} 20. Bg3 {[%clk 0:02:16]}  Bxf3 {[%clk 0:02:18]} 21. Qxf3 {[%clk 0:02:15]}  Qxf3 {[%clk 0:02:18]} 22. gxf3 {[%clk 0:02:16]}  Kd7 {[%clk 0:02:09]} 23. Kg2 {[%clk 0:02:12]}  h5 {[%clk 0:02:04]} 24. Rh1 {[%clk 0:02:12]}  Ne7 {[%clk 0:01:58]} 25. f4 {[%clk 0:02:08]}  Nf5 {[%clk 0:01:32]} 26. Kf3 {[%clk 0:02:08]}  h4 {[%clk 0:01:30]} 27. Bh2 {[%clk 0:02:08]}  Ke6 {[%clk 0:01:28]} 28. Rag1 {[%clk 0:01:58]}  d4 {[%clk 0:01:08]} 29. Ke2 {[%clk 0:01:58]}  d3+ {[%clk 0:01:05]} 30. Kd2 {[%clk 0:01:58]}  Rd4 {[%clk 0:01:04]} 31. Rc1 {[%clk 0:01:47]}  Kd5 {[%clk 0:00:43]} 32. b4 {[%clk 0:01:44]}  Rg8 {[%clk 0:00:37]} 33. c6 {[%clk 0:01:11]}  bxc6 {[%clk 0:00:24]} 34. Rc5+ {[%clk 0:01:07]}  Ke4 {[%clk 0:00:24]} 35. e6 {[%clk 0:00:49]}  fxe6 {[%clk 0:00:22]} 36. Rxc6 {[%clk 0:00:49]}  Kf3 {[%clk 0:00:18]} 37. Rxe6 {[%clk 0:00:49]}  Rc8 {[%clk 0:00:18]} 38. Rc1 {[%clk 0:00:36]}  Rxc1 {[%clk 0:00:17]} 39. Kxc1 {[%clk 0:00:37]}  d2+ {[%clk 0:00:11]} 40. Kd1 {[%clk 0:00:37]}  Kxf2 {[%clk 0:00:11]} 41. Re2+ {[%clk 0:00:33]}  Kf3 {[%clk 0:00:07]} 42. Bg1 {[%clk 0:00:30]}  Rxf4 {[%clk 0:00:04]} 43. Rxd2 {[%clk 0:00:29]}  h3 {[%clk 0:00:02]} 44. Ke1 {[%clk 0:00:24]}  Kg4 {[%clk 0:00:01]} 45. Bh2 {[%clk 0:00:23]}  Ng3 {[%clk 0:00:01]} 46. Rf2 {[%clk 0:00:16]}  Re4+ {[%clk 0:00:01]} 47. Kd2 {[%clk 0:00:16]}  Nf5 {[%clk 0:00:02]} 48. Kd3 {[%clk 0:00:14]}  Re3+ {[%clk 0:00:02]} 49. Kd2 {[%clk 0:00:13]}  Re4 {[%clk 0:00:02]} 50. Kd3 {[%clk 0:00:14]}  Re3+ {[%clk 0:00:02]} 51. Kd2 {[%clk 0:00:14]}  Rxa3 {[%clk 0:00:03]} 52. Rf4+ {[%clk 0:00:13]}  Kg5 {[%clk 0:00:04]} 53. Ke1 {[%clk 0:00:10]}  Ra2 {[%clk 0:00:03]} 54. Rf2 {[%clk 0:00:10]}  Ra1+ {[%clk 0:00:02]} 55. Kd2 {[%clk 0:00:10]}  Nh4 {[%clk 0:00:02]} 56. Bd6 {[%clk 0:00:06]}  Ra2+ {[%clk 0:00:02]} 57. Kc3 {[%clk 0:00:05]}  Ra3+ {[%clk 0:00:03]} 58. Kb2 {[%clk 0:00:05]}  Rd3 {[%clk 0:00:03]} 59. Be7+ {[%clk 0:00:04]}  Kg4 {[%clk 0:00:03]} 60. Kc2 {[%clk 0:00:04]}  Re3 {[%clk 0:00:03]} 61. Bc5 {[%clk 0:00:03]}  Rf3 {[%clk 0:00:03]} 62. Rd2 {[%clk 0:00:03]}  Ng2 {[%clk 0:00:03]} 63. Bd6 {[%clk 0:00:03]}  Ne3+ {[%clk 0:00:03]} 64. Kc1 {[%clk 0:00:02]}  Nf1 {[%clk 0:00:03]} 65. Rd4+ {[%clk 0:00:02]}  Kh5 {[%clk 0:00:03]} 66. Kb2 {[%clk 0:00:02]}  Ng3 {[%clk 0:00:03]} 67. Rd5+ {[%clk 0:00:02]}  Kg4 {[%clk 0:00:03]} 68. Rd4+ {[%clk 0:00:03]}  Kh5 {[%clk 0:00:03]} 69. Rd5+ {[%clk 0:00:03]}  Kh6 {[%clk 0:00:04]} 70. Rd2 {[%clk 0:00:02]}  Ne4 {[%clk 0:00:03]} 71. Rd4 {[%clk 0:00:02]}  Nxd6 {[%clk 0:00:03]} 72. Rxd6+ {[%clk 0:00:03]}  Kg5 {[%clk 0:00:04]} 73. Rd2 {[%clk 0:00:03]}  Kg4 {[%clk 0:00:03]} 0-1


[Site "https://www.chess.com"]

[Event "Titled Tuesday Blitz March 21 Early 2023"]
[White "Belov, Alexei"]
[Black "Bhavikatti, Neil"]
[WhiteFideId "4128206"]
[BlackFideId "30935024"]
[WhiteElo "2475"]
[BlackElo "2349"]
[Result "1-0"]
[Round "10"]
[TimeControl "180+2"]
[Date "2023.03.21"]
[WhiteClock "0:01:12"]
[BlackClock "0:00:30"]

1. e4 {[%clk 0:03:00]}  e5 {[%clk 0:03:00]} 2. Nf3 {[%clk 0:03:00]}  Nc6 {[%clk 0:03:00]} 3. Bb5 {[%clk 0:03:00]}  a6 {[%clk 0:03:00]} 4. Ba4 {[%clk 0:03:00]}  Nf6 {[%clk 0:03:01]} 5. d4 {[%clk 0:03:01]}  exd4 {[%clk 0:02:54]} 6. O-O {[%clk 0:03:00]}  Be7 {[%clk 0:02:48]} 7. e5 {[%clk 0:03:00]}  Nd5 {[%clk 0:02:49]} 8. Nxd4 {[%clk 0:02:58]}  Nb6 {[%clk 0:02:39]} 9. Nf5 {[%clk 0:02:58]}  O-O {[%clk 0:02:34]} 10. Qg4 {[%clk 0:02:57]}  g6 {[%clk 0:02:32]} 11. Bxc6 {[%clk 0:02:57]}  dxc6 {[%clk 0:02:30]} 12. Nxe7+ {[%clk 0:02:56]}  Qxe7 {[%clk 0:02:30]} 13. Qg3 {[%clk 0:02:57]}  Nc4 {[%clk 0:02:25]} 14. Re1 {[%clk 0:02:57]}  f6 {[%clk 0:02:05]} 15. Bh6 {[%clk 0:02:24]}  Re8 {[%clk 0:02:04]} 16. f4 {[%clk 0:02:23]}  fxe5 {[%clk 0:02:03]} 17. fxe5 {[%clk 0:02:23]}  Qc5+ {[%clk 0:01:54]} 18. Kh1 {[%clk 0:02:22]}  Rxe5 {[%clk 0:01:49]} 19. Nc3 {[%clk 0:02:18]}  Bf5 {[%clk 0:01:49]} 20. b3 {[%clk 0:02:10]}  Rxe1+ {[%clk 0:01:36]} 21. Rxe1 {[%clk 0:02:07]}  Nd6 {[%clk 0:01:33]} 22. Re7 {[%clk 0:01:59]}  Re8 {[%clk 0:01:27]} 23. Rxc7 {[%clk 0:01:47]}  Nb5 {[%clk 0:01:02]} 24. Nxb5 {[%clk 0:01:24]}  Qxb5 {[%clk 0:01:03]} 25. h3 {[%clk 0:01:21]}  Qf1+ {[%clk 0:00:51]} 26. Kh2 {[%clk 0:01:21]}  Re2 {[%clk 0:00:30]} 27. Rg7+ {[%clk 0:01:13]}  Kh8 {[%clk 0:00:30]} 28. Qb8+ {[%clk 0:01:12]} 1-0


[Site "https://www.chess.com"]